fUSD/lending_fUSD_20251123
["ID","MTS","AMOUNT","RATE_DAILY","PERIOD"]
[394711195,1763909499680,-300.050454,0.00039,120]
[394711196,1763909499689,-331.892104,0.00039,120]
[394711197,1763909499698,-500.0,0.00039,30]
[394711198,1763909499707,-426.78462315,0.00039,30]
[394711199,1763909499717,-701.46,0.00039041,2]
[394711200,1763909499727,-701.46,0.00039041,2]
[394711201,1763909499736,-698.43,0.00039041,2]
[394711202,1763909499746,-2656.17,0.000391,30]
[394711203,1763909499758,-1361.0,0.00039133,20]
[394711204,1763909499769,-151.0,0.00039175,14]
[394711205,1763909499781,-204.04269117,0.00039178,8]
[394711206,1763909499790,-500.0,0.00039178,8]
[394711207,1763909499800,-322.11119288,0.00039178,8]
[394711208,1763909499811,-466.6808793,0.00039178,8]
[394711209,1763909499829,-500.0,0.00039178,8]
[394711210,1763909499844,-500.0,0.00039178,8]
[394711211,1763909499853,-500.0,0.00039178,8]
[394711212,1763909499862,-500.0,0.00039178,8]
[394711213,1763909499871,-500.0,0.00039178,8]
[394711214,1763909499882,-273.23837812,0.00039178,8]
[394711215,1763909499891,-500.0,0.00039178,8]
[394711216,1763909499900,-248.0355839,0.00039178,8]
[394711217,1763909499910,-500.0,0.00039178,8]
[394711218,1763909499920,-500.0,0.00039178,8]
[394711219,1763909499930,-600.0,0.00039178,7]
[394711220,1763909499940,-500.0,0.00039178,8]
[394711221,1763909499949,-500.0,0.00039178,8]
[394711222,1763909499959,-500.0,0.00039178,8]
[394711223,1763909499968,-500.0,0.00039178,8]
[394711224,1763909499977,-500.0,0.00039178,8]
[394711225,1763909499986,-500.0,0.00039178,8]
[394711226,1763909499995,-500.0,0.00039178,8]
[394711227,1763909500005,-167.586562,0.00039178,8]
[394711228,1763909500017,-500.0,0.00039178,8]
[394711229,1763909500028,-501.44984762,0.00039178,8]
[394711230,1763909500037,-212.715197,0.00039178,8]
[394711231,1763909500047,-500.0,0.00039178,8]
[394711232,1763909500056,-500.0,0.00039178,8]
[394711233,1763909500065,-160.962503,0.00039178,8]
[394711234,1763909500075,-500.0,0.00039178,8]
[394711235,1763909500084,-502.278426,0.00039178,8]
[394711236,1763909500094,-500.0,0.00039178,7]
[394711237,1763909500104,-500.0,0.00039178,8]
[394711238,1763909500114,-500.0,0.00039178,8]
[394711239,1763909500123,-500.0,0.00039178,8]
[394711240,1763909500133,-500.0,0.00039178,8]
[394711241,1763909500143,-500.0,0.00039178,2]
[394711242,1763909500154,-710.39,0.00039178,8]
[394711243,1763909500163,-500.0,0.00039178,8]
[394711244,1763909500173,-500.0,0.00039178,8]
[394711245,1763909500183,-780.49,0.00039178,8]
[394711246,1763909500192,-500.0,0.00039178,8]
[394711247,1763909500201,-500.0,0.00039178,8]
[394711248,1763909500212,-500.0,0.00039178,8]
[394711249,1763909500221,-500.0,0.00039178,8]
[394711250,1763909500232,-500.0,0.00039178,8]
[394711251,1763909500241,-500.0,0.00039178,8]
[394711252,1763909500252,-213.87957471,0.00039178,8]
[394711253,1763909500262,-612.53,0.00039178,8]
[394711254,1763909500271,-500.0,0.00039178,8]
[394711255,1763909500280,-500.0,0.00039178,8]
[394711256,1763909500290,-500.0,0.00039178,8]
[394711257,1763909500298,-500.0,0.00039178,8]
[394711258,1763909500307,-500.0,0.00039178,8]
[394711259,1763909500316,-500.0,0.00039178,8]
[394711260,1763909500326,-500.0,0.00039178,8]
[394711261,1763909500335,-539.29,0.00039178,8]
[394711262,1763909500344,-500.0,0.00039178,8]
[394711263,1763909500354,-500.0,0.00039178,8]
[394711264,1763909500363,-989.21,0.00039178,8]
[394711265,1763909500372,-1015.93,0.00039178,8]
[394711266,1763909500381,-500.0,0.00039178,8]
[394711267,1763909500390,-500.0,0.00039178,8]
[394711268,1763909500400,-500.0,0.00039178,8]
[394711269,1763909500410,-500.0,0.00039178,8]
[394711270,1763909500419,-500.0,0.00039178,8]
[394711271,1763909500429,-500.0,0.00039178,8]
[394711272,1763909500439,-500.0,0.00039178,8]
[394711273,1763909500448,-500.0,0.00039178,8]
[394711274,1763909500458,-686.69,0.00039178,8]
[394711275,1763909500467,-500.0,0.00039178,8]
[394711276,1763909500476,-753.03,0.00039178,8]
[394711277,1763909500486,-500.0,0.00039178,8]
[394711278,1763909500495,-500.0,0.00039178,8]
[394711279,1763909500505,-955.64,0.00039178,8]
[394711280,1763909500515,-512.50052497,0.00039178,8]
[394711281,1763909500525,-749.68,0.00039178,8]
[394711282,1763909500535,-1904.91,0.00039178,8]
[394711283,1763909500544,-502.99,0.00039178,8]
[394711284,1763909500553,-500.0,0.00039178,8]
[394711285,1763909500562,-500.0,0.00039178,8]
[394711286,1763909500571,-500.0,0.00039178,8]
[394711287,1763909500580,-500.0,0.00039178,8]
[394711288,1763909500589,-777.46,0.00039178,8]
[394711289,1763909500598,-500.0,0.00039178,8]
[394711290,1763909500791,-500.0,0.00039178,8]
[394711291,1763909500802,-500.0,0.00039178,8]
[394711292,1763909500811,-711.21,0.00039178,8]
[394711293,1763909500823,-500.0,0.00039178,8]
[394711294,1763909500834,-500.0,0.00039178,8]
[394711295,1763909500845,-500.0,0.00039178,8]
[394711296,1763909500855,-500.0,0.00039178,8]
[394711297,1763909500866,-545.57,0.00039178,8]
[394711298,1763909500876,-500.0,0.00039178,8]
[394711299,1763909500886,-500.0,0.00039178,8]
[394711300,1763909500898,-500.0,0.00039178,8]
[394711301,1763909500907,-945.75,0.00039178,8]
[394711302,1763909500917,-500.0,0.00039178,8]
[394711303,1763909500928,-602.02,0.00039178,8]
[394711304,1763909500938,-774.07,0.00039178,8]
[394711305,1763909500947,-500.0,0.00039178,8]
[394711306,1763909500957,-500.0,0.00039178,8]
[394711307,1763909500966,-500.0,0.00039178,8]
[394711308,1763909500975,-500.0,0.00039178,8]
[394711309,1763909500985,-500.0,0.00039178,8]
[394711310,1763909500994,-500.0,0.00039178,8]
[394711311,1763909501004,-770.93,0.00039178,8]
[394711312,1763909501013,-881.9,0.00039178,8]
[394711313,1763909501022,-502.58732633,0.00039178,8]
[394711314,1763909501033,-856.13,0.00039178,8]
[394711315,1763909501043,-509.85630384,0.00039178,8]
[394711316,1763909501053,-500.0,0.00039178,8]
[394711317,1763909501062,-500.0,0.00039178,8]
[394711318,1763909501071,-580.18,0.00039178,8]
[394711319,1763909501081,-500.0,0.00039178,8]
[394711320,1763909501090,-500.0,0.00039178,8]
[394711321,1763909501100,-500.0,0.00039178,8]
[394711322,1763909501110,-500.0,0.00039178,8]
[394711323,1763909501120,-500.0,0.00039178,8]
[394711324,1763909501131,-500.0,0.00039178,8]
[394711325,1763909501140,-587.98,0.00039178,8]
[394711326,1763909501151,-804.24,0.00039178,8]
[394711327,1763909501160,-500.0,0.00039178,8]
[394711328,1763909501170,-549.0,0.00039178,8]
[394711329,1763909501180,-500.0,0.00039178,8]
[394711330,1763909501189,-500.0,0.00039178,8]
[394711331,1763909501199,-500.0,0.00039178,8]
[394711332,1763909501208,-500.0,0.00039178,8]
[394711333,1763909501218,-500.0,0.00039178,8]
[394711334,1763909501228,-500.0,0.00039178,8]
[394711335,1763909501238,-500.0,0.00039178,8]
[394711336,1763909501247,-500.0,0.00039178,8]
[394711337,1763909501257,-546.8,0.00039178,8]
[394711338,1763909501266,-500.0,0.00039178,8]
[394711339,1763909501277,-500.0,0.00039178,8]
[394711340,1763909501286,-500.0,0.00039178,8]
[394711341,1763909501295,-777.26,0.00039178,8]
[394711342,1763909501304,-500.0,0.00039178,8]
[394711343,1763909501314,-500.0,0.00039178,8]
[394711344,1763909501323,-503.27024843,0.00039178,8]
[394711345,1763909501333,-733.36,0.00039178,8]
[394711346,1763909501343,-631.89,0.00039178,8]
[394711347,1763909501352,-500.0,0.00039178,8]
[394711348,1763909501362,-500.0,0.00039178,8]
[394711349,1763909501371,-500.0,0.00039178,8]
[394711350,1763909501382,-500.0,0.00039178,8]
[394711351,1763909501391,-500.0,0.00039178,8]
[394711352,1763909501401,-500.0,0.00039178,8]
[394711353,1763909501410,-929.02,0.00039178,8]
[394711354,1763909501420,-519.50375213,0.00039178,8]
[394711355,1763909501429,-500.0,0.00039178,8]
[394711356,1763909501438,-513.74676031,0.00039178,8]
[394711357,1763909501448,-500.0,0.00039178,8]
[394711358,1763909501457,-500.0,0.00039178,8]
[394711359,1763909501466,-500.0,0.00039178,8]
[394711360,1763909501475,-724.9,0.00039178,8]
[394711361,1763909501485,-817.77,0.00039178,8]
[394711362,1763909501494,-500.0,0.00039178,8]
[394711363,1763909501503,-500.0,0.00039178,8]
[394711364,1763909501512,-505.82374926,0.00039178,8]
[394711365,1763909501522,-500.0,0.00039178,8]
[394711366,1763909501531,-733.87,0.00039178,8]
[394711367,1763909501541,-500.0,0.00039178,8]
[394711368,1763909501550,-500.0,0.00039178,8]
[394711369,1763909501559,-503.93450442,0.00039178,8]
[394711370,1763909501568,-500.0,0.00039178,8]
[394711371,1763909501577,-500.0,0.00039178,8]
[394711372,1763909501586,-500.0,0.00039178,8]
[394711373,1763909501596,-500.0,0.00039178,8]
[394711374,1763909501605,-542.48,0.00039178,8]
[394711375,1763909501614,-972.59,0.00039178,8]
[394711376,1763909501623,-500.0,0.00039178,8]
[394711377,1763909501632,-1090.79,0.00039178,8]
[394711378,1763909501642,-1130.04,0.00039178,8]
[394711379,1763909501651,-500.0,0.00039178,8]
[394711380,1763909501660,-500.0,0.00039178,8]
[394711381,1763909501669,-1060.2,0.00039178,8]
[394711382,1763909501679,-500.0,0.00039178,8]
[394711383,1763909501688,-500.0,0.00039178,8]
[394711384,1763909501697,-500.0,0.00039178,8]
[394711385,1763909501707,-500.0,0.00039178,8]
[394711386,1763909501716,-500.0,0.00039178,8]
[394711387,1763909501725,-500.0,0.00039178,8]
[394711388,1763909501735,-531.78186062,0.00039178,8]
[394711389,1763909501744,-500.0,0.00039178,8]
[394711390,1763909501757,-658.36,0.00039178,8]
[394711391,1763909501766,-500.0,0.00039178,8]
[394711392,1763909501775,-500.0,0.00039178,8]
[394711393,1763909501783,-500.0,0.00039178,8]
[394711394,1763909501792,-500.0,0.00039178,8]
[394711395,1763909501802,-500.0,0.00039178,8]
[394711396,1763909501811,-1027.7,0.00039178,8]
[394711397,1763909501823,-500.0,0.00039178,8]
[394711398,1763909501833,-639.51,0.00039178,8]
[394711399,1763909501842,-500.51007127,0.00039178,8]
[394711400,1763909501851,-500.0,0.00039178,8]
[394711401,1763909501860,-500.0,0.00039178,7]
[394711402,1763909501870,-500.0,0.00039178,8]
[394711403,1763909501879,-500.0,0.00039178,8]
[394711404,1763909501888,-500.0,0.00039178,8]
[394711405,1763909501897,-500.0,0.00039178,8]
[394711406,1763909501909,-500.0,0.00039178,8]
[394711407,1763909501918,-500.0,0.00039178,8]
[394711408,1763909501928,-500.0,0.00039178,8]
[394711409,1763909501937,-500.0,0.00039178,8]
[394711410,1763909501947,-500.0,0.00039178,8]
[394711411,1763909501956,-500.0,0.00039178,8]
[394711412,1763909501964,-500.0,0.00039178,8]
[394711413,1763909501974,-1351.81,0.00039178,8]
[394711414,1763909501983,-589.81712656,0.00039178,8]
[394711415,1763909501993,-500.0,0.00039178,8]
[394711416,1763909502003,-610.04,0.00039178,8]
[394711417,1763909502012,-500.0,0.00039178,8]
[394711418,1763909502021,-500.0,0.00039178,8]
[394711419,1763909502031,-500.0,0.00039178,8]
[394711420,1763909502041,-500.0,0.00039178,8]
[394711421,1763909502050,-722.95,0.00039178,8]
[394711422,1763909502070,-500.0,0.00039178,8]
[394711423,1763909502086,-500.0,0.00039178,8]
[394711424,1763909502105,-500.0,0.00039178,8]
[394711425,1763909502125,-500.0,0.00039178,8]
[394711426,1763909502141,-640.14,0.00039178,8]
[394711427,1763909502160,-510.46366579,0.00039178,8]
[394711428,1763909502179,-500.0,0.00039178,8]
[394711429,1763909502199,-500.0,0.00039178,7]
[394711430,1763909502219,-1924.17,0.00039178,8]
[394711431,1763909502236,-500.0,0.00039178,8]
[394711432,1763909502256,-500.0,0.00039178,8]
[394711433,1763909502273,-500.0,0.00039178,8]
[394711434,1763909502286,-505.65429913,0.00039178,8]
[394711435,1763909502306,-1033.96,0.00039178,8]
[394711436,1763909502318,-500.0,0.00039178,8]
[394711437,1763909502336,-504.57075564,0.00039178,8]
[394711438,1763909502349,-500.0,0.00039178,8]
[394711439,1763909502364,-894.75,0.00039178,8]
[394711440,1763909502379,-594.55,0.00039178,8]
[394711441,1763909502396,-500.0,0.00039178,8]
[394711442,1763909502416,-500.0,0.00039178,8]
[394711443,1763909502431,-932.92,0.00039178,8]
[394711444,1763909502446,-500.0,0.00039178,8]
[394711445,1763909502462,-503.02381469,0.00039178,8]
[394711446,1763909502478,-206.93778354,0.00039178,8]
[394711447,1763909502492,-500.0,0.00039178,8]
[394711448,1763909502507,-681.49,0.00039178,8]
[394711449,1763909502522,-500.0,0.00039178,8]
[394711450,1763909502539,-505.10297248,0.00039178,8]
[394711451,1763909502554,-500.0,0.00039178,8]
[394711452,1763909502569,-500.0,0.00039178,8]
[394711453,1763909502584,-500.0,0.00039178,8]
[394711454,1763909502599,-510.68,0.00039178,8]
[394711455,1763909502614,-500.0,0.00039178,8]
[394711456,1763909502629,-524.71310922,0.00039178,8]
[394711457,1763909502644,-936.98,0.00039178,8]
[394711458,1763909502660,-611.37,0.00039178,8]
[394711459,1763909502675,-500.0,0.00039178,8]
[394711460,1763909502689,-509.67308174,0.00039178,8]
[394711461,1763909502705,-500.0,0.00039178,8]
[394711462,1763909502720,-500.0,0.00039178,8]
[394711463,1763909502743,-500.0,0.00039178,8]
[394711464,1763909502758,-500.0,0.00039178,8]
[394711465,1763909502773,-500.0,0.00039178,8]
[394711466,1763909502790,-500.0,0.00039178,8]
[394711467,1763909502806,-573.43681878,0.00039178,8]
[394711468,1763909502823,-556.93106572,0.00039178,8]
[394711469,1763909502839,-500.0,0.00039178,8]
[394711470,1763909502854,-524.0776506,0.00039178,8]
[394711471,1763909502869,-500.0,0.00039178,8]
[394711472,1763909502885,-500.0,0.00039178,8]
[394711473,1763909502902,-500.0,0.00039178,8]
[394711474,1763909502918,-529.94583998,0.00039178,8]
[394711475,1763909502934,-500.0,0.00039178,8]
[394711476,1763909502949,-373.26114123,0.00039178,8]
[394711477,1763909502964,-500.0,0.00039178,8]
[394711478,1763909502979,-500.0,0.00039178,8]
[394711479,1763909502994,-500.0,0.00039178,8]
[394711480,1763909503008,-500.0,0.00039178,8]
[394711481,1763909503022,-1110.54,0.00039178,2]
[394711482,1763909503037,-500.0,0.00039178,8]
[394711483,1763909503052,-500.0,0.00039178,8]
[394711484,1763909503068,-825.57,0.00039178,8]
[394711485,1763909503083,-500.0,0.00039178,8]
[394711486,1763909503098,-848.78,0.00039178,8]
[394711487,1763909503114,-500.0,0.00039178,8]
[394711488,1763909503129,-504.65964041,0.00039178,8]
[394711489,1763909503144,-500.0,0.00039178,8]
[394711490,1763909503167,-500.0,0.00039178,8]
[394711491,1763909503186,-767.26,0.00039178,8]
[394711492,1763909503202,-500.0,0.00039178,8]
[394711493,1763909503213,-500.0,0.00039178,2]
[394711494,1763909503223,-500.0,0.00039178,8]
[394711495,1763909503233,-500.0,0.00039178,8]
[394711496,1763909503243,-500.0,0.00039178,8]
[394711497,1763909503253,-761.16,0.00039178,8]
[394711498,1763909503262,-500.0,0.00039178,8]
[394711499,1763909503272,-500.0,0.00039178,8]
[394711500,1763909503281,-500.0,0.00039178,8]
[394711501,1763909503291,-500.0,0.00039178,8]
[394711502,1763909503301,-646.03,0.00039178,8]
[394711503,1763909503311,-500.0,0.00039178,8]
[394711504,1763909503321,-500.0,0.00039178,8]
[394711505,1763909503330,-500.0,0.00039178,8]
[394711506,1763909503340,-500.0,0.00039178,8]
[394711507,1763909503350,-500.0,0.00039178,8]
[394711508,1763909503359,-500.0,0.00039178,8]
[394711509,1763909503369,-754.76,0.00039178,8]
[394711510,1763909503378,-1235.54,0.00039178,8]
[394711511,1763909503389,-1214.92,0.00039178,8]
[394711512,1763909503398,-500.0,0.00039178,8]
[394711513,1763909503410,-592.59,0.00039178,8]
[394711514,1763909503419,-500.0,0.00039178,8]
[394711515,1763909503429,-610.45,0.00039178,8]
[394711516,1763909503439,-500.0,0.00039178,8]
[394711517,1763909503448,-670.52,0.00039178,8]
[394711518,1763909503457,-853.16,0.00039178,2]
[394711519,1763909503467,-500.0,0.00039178,8]
[394711520,1763909503477,-500.0,0.00039178,8]
[394711521,1763909503487,-500.0,0.00039178,8]
[394711522,1763909503498,-500.0,0.00039178,8]
[394711523,1763909503507,-500.0,0.00039178,8]
[394711524,1763909503517,-500.0,0.00039178,8]
[394711525,1763909503526,-270.31427972,0.00039178,8]
[394711526,1763909503536,-500.0,0.00039178,8]
[394711527,1763909503545,-500.0,0.00039178,8]
[394711528,1763909503555,-896.58,0.00039178,8]
[394711529,1763909503565,-245.72578869,0.00039178,8]
[394711530,1763909503574,-500.0,0.00039178,8]
[394711531,1763909503585,-777.23,0.00039178,8]
[394711532,1763909503595,-500.0,0.00039178,8]
[394711533,1763909503605,-500.0,0.00039178,8]
[394711534,1763909503614,-500.0,0.00039178,8]
[394711535,1763909503624,-738.83,0.00039178,8]
[394711536,1763909503634,-762.49,0.00039178,8]
[394711537,1763909503645,-500.0,0.00039178,8]
[394711538,1763909503654,-283.00072781,0.00039178,8]
[394711539,1763909503663,-500.0,0.00039178,8]
[394711540,1763909503673,-500.0,0.00039178,8]
[394711541,1763909503683,-500.0,0.00039178,8]
[394711542,1763909503694,-500.0,0.00039178,8]
[394711543,1763909503704,-506.57596285,0.00039178,8]
[394711544,1763909503714,-500.0,0.00039178,8]
[394711545,1763909503723,-743.3,0.00039178,8]
[394711546,1763909504291,-500.0,0.00039178,8]
[394711547,1763909504320,-500.0,0.00039178,8]
[394711548,1763909504343,-500.0,0.00039178,8]
[394711549,1763909504368,-500.0,0.00039178,8]
[394711550,1763909504380,-887.63,0.00039178,8]
[394711551,1763909504389,-432.12746951,0.00039178,8]
[394711552,1763909504942,-519.72719098,0.00038356,8]
[394711553,1763909504952,-350.42208902,0.00038356,8]
[394711554,1763909508014,307.66746544,0.00014573,2]
[394711555,1763909508255,2065.20965159,0.00014573,2]
[394711559,1763909550187,500.0,0.00017,30]
[394711560,1763909550664,500.0,0.00017,30]
[394711561,1763909550866,500.0,0.000165,30]
[394711562,1763909551207,983.35384408,0.000165,30]
[394711563,1763909551757,500.0,0.00017,30]
[394711564,1763909551866,632.85241488,0.000165,30]
[394711565,1763909552106,500.0,0.00017,30]
[394711566,1763909552925,638.51268686,0.000165,30]
[394711567,1763909554714,500.0,0.00017,30]
[394711568,1763909558276,500.0,0.00017,30]
[394711569,1763909564252,182.0,0.000215,120]
[394711570,1763909568850,250.0,0.0001455,2]
[394711571,1763909578774,-1200.0,0.00015017,2]
[394711572,1763909578806,-151.0,0.00015018,2]
[394711573,1763909578839,-151.0,0.00015018,2]
[394711574,1763909578873,-151.0,0.00015018,2]
[394711575,1763909578906,-151.0,0.00015018,2]
[394711576,1763909578942,-151.0,0.00015018,2]
[394711577,1763909578976,-151.0,0.00015018,2]
[394711578,1763909579009,-151.0,0.00015018,2]
[394711579,1763909579042,-151.0,0.00015018,2]
[394711580,1763909579075,-151.0,0.00015018,2]
[394711581,1763909579114,-227.28168012,0.00015018,2]
[394711582,1763909579146,-634.48009229,0.00015018,2]
[394711583,1763909579179,-1003.375,0.00015899,2]
[394711584,1763909579211,-195.0,0.00015965,2]
[394711585,1763909579250,-195.0,0.0001603,2]
[394711586,1763909579282,-178.73645518,0.0001603,2]
[394711588,1763909581963,-14.26354482,0.0001603,2]
[394711589,1763909581995,-300.0,0.0001603,2]
[394711590,1763909582026,-3626.07661036,0.0001605,2]
[394711595,1763909587871,-2119.32968964,0.0001605,2]
[394711596,1763909587910,-1000.0,0.0001605,2]
[394711597,1763909587947,-1000.0,0.0001605,2]
[394711598,1763909587985,-195.0,0.000161,2]
[394711599,1763909588020,-500.0,0.00016149,2]
[394711600,1763909591097,-500.0,0.00016149,2]
[394711601,1763909591128,-500.0,0.00016149,2]
[394711602,1763909591160,-500.0,0.00016173,2]
[394711603,1763909591190,-275.15105889,0.00016173,2]
[394711604,1763909591220,-161.29036105,0.00016173,2]
[394711605,1763909591254,-200.7144154,0.00016173,2]
[394711606,1763909591285,-500.0,0.00016173,2]
[394711607,1763909591318,-500.0,0.00016173,2]
[394711608,1763909591350,-500.0,0.000162,2]
[394711609,1763909591381,-500.0,0.00016273,2]
[394711610,1763909591411,-169.98112419,0.00016273,2]
[394711611,1763909591442,-500.0,0.00016273,2]
[394711612,1763909591474,-44.73608094,0.00016435,2]
[394711615,1763909662885,1000.0,0.00013699,2]
[394711623,1763909713497,1057.11,0.0001455,2]
[394711631,1763909830237,162.99,0.00019178,30]
[394711635,1763909911633,-205.7823,0.00015899,2]
[394711636,1763909911666,-195.0,0.00015937,2]
[394711637,1763909911698,-250.0,0.00015975,2]
[394711638,1763909911730,-196.67005895,0.00016,2]
[394711639,1763909911761,-2500.0,0.0001605,2]
[394711640,1763909911792,-160.0,0.000161,2]
[394711641,1763909911825,-250.0,0.00016142,2]
[394711642,1763909911856,-297.0,0.00016148,2]
[394711643,1763909911888,-500.0,0.00016149,2]
[394711644,1763909911934,-391.1052821,0.00016149,2]
[394711646,1763909917510,-108.8947179,0.00016149,2]
[394711647,1763909917544,-500.0,0.00016149,2]
[394711648,1763909917581,-500.0,0.00016149,2]
[394711649,1763909917617,-500.0,0.00016149,2]
[394711650,1763909917652,-500.0,0.00016149,2]
[394711651,1763909917687,-500.0,0.00016149,2]
[394711652,1763909917721,-282.96407984,0.00016293,2]
[394711653,1763909917757,-500.0,0.00016293,2]
[394711654,1763909917792,-500.0,0.00016293,2]
[394711655,1763909917828,-300.0,0.00016368,2]
[394711656,1763909917860,-300.0,0.00016368,2]
[394711657,1763909923557,-1057.11,0.00016369,2]
[394711698,1763910544658,500.0,0.0001585,2]
[394711701,1763910577426,-1108.5711,0.0001595,2]
[394711702,1763910577457,-261.10637022,0.00015977,2]
[394711703,1763910577488,-250.0,0.00016,2]
[394711704,1763910577520,-213.5948793,0.00016077,2]
[394711705,1763910577551,-300.79916711,0.00016334,2]
[394711706,1763910577583,-1200.0,0.00016434,2]
[394711707,1763910577614,-300.0,0.00016434,2]
[394711708,1763910577644,-467.14351781,0.00016435,2]
[394711709,1763910577675,-265.3009534,0.00016435,2]
[394711710,1763910577707,-261.1063702,0.00016711,2]
[394711711,1763910577737,-64.68357192,0.0001673,2]
[394711712,1763910580308,-176.86730227,0.0001673,2]
[394711713,1763910580341,-311.42901188,0.0001673,2]
[394711714,1763910580372,-615.39814008,0.0001673,2]
[394711715,1763910580402,-300.79916711,0.00016773,2]
[394711716,1763910580433,-300.0,0.00016813,2]
[394711717,1763910581039,207.61934125,0.00016813,2]
[394711718,1763910581237,151.0,0.00016813,2]
[394711719,1763910582217,151.0,0.00016813,2]
[394711720,1763910582426,202.73460453,0.00016813,2]
[394711721,1763910583571,264.2386825,0.00016813,2]
[394711729,1763910631769,-200.0,0.00016729,2]
[394711731,1763910631780,-250.0,0.00016771,2]
[394711732,1763910631789,-259.31483839,0.00016813,2]
[394711736,1763910631827,-40.68516161,0.00016813,2]
[394711737,1763910631837,-1200.0,0.00016813,2]
[394711738,1763910631847,-308.0,0.00016814,2]
[394711739,1763910631857,-1945.67250796,0.00016814,2]
[394711740,1763910631867,-150.99,0.00016814,2]
[394711741,1763910631877,-9999.99,0.00016814,2]
[394711742,1763910631887,-550.0,0.00016859,2]
[394711743,1763910631896,-9090.66,0.0001686,2]
[394711744,1763910631905,-9999.99,0.0001686,2]
[394711745,1763910631915,-9999.99,0.0001686,2]
[394711746,1763910631925,-484.0,0.00016976,2]
[394711747,1763910631934,-386.80045172,0.0001701,2]
[394711748,1763910631943,-300.0,0.00017014,2]
[394711749,1763910631952,-375.0,0.00017091,2]
[394711750,1763910631961,-261.0,0.00017125,2]
[394711751,1763910631971,-210.0,0.00017133,2]
[394711752,1763910631980,-318.0,0.00017159,2]
[394711753,1763910631989,-221.0,0.00017193,2]
[394711754,1763910631999,-1383.0,0.00017285,2]
[394711755,1763910632008,-151.0,0.00017286,2]
[394711756,1763910632018,-151.0,0.00017286,2]
[394711757,1763910632028,-151.0,0.00017286,2]
[394711758,1763910632037,-151.0,0.00017286,2]
[394711759,1763910632047,-151.0,0.00017286,2]
[394711760,1763910632056,-151.0,0.00017286,2]
[394711761,1763910632066,-151.0,0.00017286,2]
[394711762,1763910632075,-151.0,0.00017286,2]
[394711763,1763910632085,-171.71735905,0.00017286,2]
[394711764,1763910632095,-261.1063702,0.00017445,2]
[394711765,1763910632105,-250.0,0.00017545,2]
[394711766,1763910632115,-300.0,0.00017545,2]
[394711767,1763910632125,-300.0,0.00017545,2]
[394711768,1763910632135,-300.0,0.00017545,2]
[394711769,1763910632144,-300.0,0.00017545,2]
[394711770,1763910632154,-300.0,0.00017545,2]
[394711771,1763910632163,-1383.0,0.00017559,2]
[394711772,1763910632176,-1383.0,0.00017833,2]
[394711773,1763910632186,-669.0,0.00017971,2]
[394711774,1763910632196,-207.65,0.00018074,2]
[394711775,1763910632206,-166.66,0.00018094,2]